[Event "4NCL 2023-2024"]
[Site "Daventry"]
[Date "2024.05.05"]
[Round "10.44"]
[White "Macfarlane, Donald"]
[Black "Berry, Neil"]
[Result "1/2-1/2"]
[ECO "A13"]
[WhiteElo "2184"]
[BlackElo "2260"]
[Annotator "TA"]
[PlyCount "47"]
[EventDate "2023.11.11"]
[EventType "team-tourn"]
[EventCountry "ENG"]
[SourceTitle "playchess.com"]
[Source "ChessBase"]
[SourceQuality "1"]
[TimeControl "40/6000+30:3000+30"]

{[%evp 9,47,4,23,19,27,29,33,16,27,14,11,0,0,0,0,0,0,0,0,0,0,-2,0,0,12,0,51,45,43,52,52,46,51,22,12,10,38,29,34,27]} 1. c4 {[%emt 0:00:04]} e6 {[%emt 0:03:05]} 2. Nf3 {[%emt 0:00:57]} d5 {[%emt 0:00:25]} 3. g3 {[%emt 0:01:10]} Nf6 {[%emt 0:00:50]} 4. Bg2 {[%emt 0:00:36]} d4 {[%emt 0:02:08]} 5. d3 {[%emt 0:01:40]} Be7 {[%emt 0:04:47]} 6. O-O {[%emt 0:02:43][%cal Ob2b4]} Nc6 {[%emt 0:00:55]} 7. e3 {[%emt 0:27:18]} O-O {[%emt 0:09:20]} 8. exd4 {[%emt 0:18:57]} Nxd4 {[%emt 0:00:09]} 9. Nxd4 {[%emt 0:00:04]} Qxd4 {[%emt 0:00:08]} 10. Nc3 {[%emt 0:00:05]} e5 {[%emt 0:11:41]} 11. Be3 {[%emt 0:10:05]} Qd8 {[%emt 0:01:31]} 12. h3 {[%emt 0:02:14]} c6 {[%emt 0:00:50]} 13. d4 {[%emt 0:04:35]} exd4 {[%emt 0:01:27]} 14. Qxd4 {[%emt 0:00:17]} Be6 {[%emt 0:04:02]} 15. Qxd8 {[%emt 0:08:02]} Rfxd8 {[%emt 0:00:37]} 16. b3 {[%emt 0:00:04]} Bf5 {[%emt 0:12:31]} 17. Rfd1 {[%emt 0:01:24]} Bd3 {[%emt 0:13:11] [#]} (17... a5 $11) 18. Nd5 $1 $14 {[%emt 0:06:15]} cxd5 {[%emt 0:08:57]} (18... Nxd5 $2 {perishes.} 19. cxd5 Bc2 20. Rd2 $18) 19. Rxd3 {[%emt 0:00:06]} dxc4 {[%emt 0:00:13]} 20. Rxd8+ {[%emt 0:00:08]} Rxd8 {[%emt 0:02:03]} 21. bxc4 {[%emt 0:00:05]} b6 {[%emt 0:03:32]} 22. a4 {[%emt 0:04:16][%cal Ba2a4,Ba4a5,Ba5b6][%mdl 32]} Rc8 {[%emt 0:10:44][%cal Oe7c5]} 23. a5 {[%emt 0:04:24]} g6 {[%emt 0:05:28]} 24. axb6 {[%emt 0:07:24] Weighted Error Value: White=0.04 (flawless) /Black=0.10 (very precise) .  Mistake:       	---       	Black=1      Inaccurate:     	White=1     	Black=1      OK:         	White=12    	Black=8      Best:        	---       	Black=1} 1/2-1/2

[Event "4NCL 2023-2024"]
[Site "Daventry"]
[Date "2024.05.05"]
[Round "10.45"]
[White "Shafi, Declan"]
[Black "Powierski, Emil"]
[Result "0-1"]
[ECO "D02"]
[WhiteElo "2226"]
[BlackElo "2282"]
[Annotator "TA"]
[PlyCount "128"]
[EventDate "2023.11.11"]
[EventType "team-tourn"]
[EventCountry "ENG"]
[SourceTitle "playchess.com"]
[Source "ChessBase"]
[SourceQuality "1"]
[TimeControl "40/6000+30:3000+30"]

{[%evp 19,128,57,43,47,54,65,60,39,30,21,44,23,52,5,76,67,71,0,9,22,54,45,52,63,116,35,52,-12,-22,-14,-15,-14,-12,-12,-11,-34,-30,-56,-71,-76,-83,-75,-55,-71,-26,-29,-31,-29,-24,-108,-23,-130,-122,-126,-125,-135,-137,-141,-134,-146,-131,-190,-184,-253,-247,-283,-296,-331,-333,-324,-242,-373,-368,-384,-383,-393,-416,-397,-404,-460,-472,-559,-551,-549,-533,-741,-826,-825,-793,-794,-700,-1762,-1990,-6187,-5600,-6770,-6713,-5093,-5093,-29968,-29970,-29973,-29975,-29980,-29981,-29981,-29982,-29983,-29982,-29981,-12758]} 1. Nf3 {[%emt 0:00:04][%cal Bg1f3,Bf3d4,Bd4b3,Bb3c5][%mdl 32]} d5 {[%emt 0:02:01]} 2. g3 {[%emt 0:00:09]} Nf6 {[%emt 0:01:04]} 3. Bg2 {[%emt 0:00:12]} c5 {[%emt 0:01:43]} 4. O-O {[%emt 0:00:12]} e6 {[%emt 0:00:06]} 5. d4 {[%emt 0:00:48]} cxd4 {[%emt 0:01:26]} 6. Nxd4 {[%emt 0:00:29]} e5 {[%emt 0:02:04]} 7. Nb3 {[%emt 0:00:17]} Nc6 {[%emt 0:03:23]} 8. Bg5 {[%emt 0:05:08]} Be6 {[%emt 0:00:30]} 9. Nc3 {[%emt 0:05:37]} d4 {[%emt 0:22:41]} 10. Ne4 {[%emt 0:01:13]} Be7 {[%emt 0:11:19]} 11. Nec5 {[%emt 0:05:35]} Bxc5 {[%emt 0:14:15]} 12. Nxc5 {[%emt 0:00:09]} Qe7 {[%emt 0:00:17]} 13. Nd3 {[%emt 0:06:41] White is slightly better.} h6 {[%emt 0:12:28]} 14. Bxf6 {[%emt 0:01:55]} gxf6 {[%emt 0:00:43]} 15. f4 {[%emt 0:01:04]} Qd6 {[%emt 0:05:08]} 16. Rc1 {[%emt 0:02:58]} (16. fxe5 $14 fxe5 17. Qd2) 16... Bd5 {[%emt 0:02:07]} (16... h5 $1 $11) 17. e4 {[%emt 0:13:06]} Bc4 {[%emt 0:05:43]} 18. Bh3 {[%emt 0:05:55]} (18. fxe5 $16 Nxe5 19. Rf5) 18... h5 $1 $11 {[%emt 0:01:38]} 19. fxe5 {[%emt 0:04:16]} fxe5 {[%emt 0:00:39][%cal Oh5h4]} (19... Nxe5 {looks sharper.} 20. Rf4 Ke7 21. Kh1 Rag8) 20. b3 {[%emt 0:03:13]} Be6 {[%emt 0:02:41]} 21. Bxe6 {[%emt 0:01:35]} Qxe6 {[%emt 0:02:10]} (21... fxe6 $14 22. h4 O-O-O) 22. Qf3 {[%emt 0:01:38]} (22. Rf5 $16) 22... h4 {[%emt 0:03:54]} 23. Qf6 {[%emt 0:03:25]} (23. g4 $1 $14) 23... Qxf6 {[%emt 0:04:34]} 24. Rxf6 {[%emt 0:00:10]} hxg3 {[%emt 0:00:02]} 25. hxg3 {[%emt 0:00:09]} Ke7 {[%emt 0:02:39]} 26. Rcf1 {[%emt 0:00:53]} Rh7 {[%emt 0:02:14]} 27. R1f2 {[%emt 0:06:00]} Rg8 {[%emt 0:01:19]} 28. R6f3 {[%emt 0:00:26]} Rg6 {[%emt 0:00:53]} 29. Rh2 {[%emt 0:02:13]} Rxh2 {[%emt 0:00:33]} 30. Kxh2 $17 {[%emt 0:00:08][%mdl 4096] Endgame. KRN-KRN} b6 {[%emt 0:00:23]} 31. Rf5 {[%emt 0:01:45]} Rh6+ {[%emt 0:01:43]} 32. Kg2 {[%emt 0:00:08]} f6 {[%emt 0:00:22]} 33. Rf1 {[%emt 0:00:55]} Ke6 {[%emt 0:01:28]} 34. a3 {[%emt 0:01:34]} (34. c3 $11 {keeps the balance.}) 34... Nd8 {[%emt 0:00:27]} (34... Rh8 $17 35. Nf2 Na5) 35. Nb4 {[%emt 0:03:58] Black continues to play with concentration.} (35. c3 $11 {remains equal.}) 35... Nf7 {[%emt 0:00:37]} 36. c3 {[%emt 0:12:19]} dxc3 {[%emt 0:01:43] [#] Hoping for ...Ng5.} 37. Nd5 {[%emt 0:00:13]} c2 {[%emt 0:00:19]} 38. Rc1 {[%emt 0:00:29]} Ng5 {[%emt 0:01:04]} 39. Rxc2 {[%emt 0:02:53]} Nxe4 {[%emt 0:00:05]} 40. Nc3 {[%emt 0:01:28]} (40. Ne3 $17 {was worth a try.}) 40... Nd6 {[%emt 0:01:13]} 41. a4 {[%emt 0:51:16]} (41. Nd1 $142) 41... Rg6 $19 {[%emt 0:11:22] Threatens to win with ...Nf5.} 42. Rd2 {[%emt 0:00:00]} Rg4 {[%emt 0:02:57]} 43. Rd3 {[%emt 0:00:00]} Rd4 {[%emt 0:01:18] Against Nd5} 44. Rf3 {[%emt 0:00:00]} Rd2+ {[%emt 0:02:13]} 45. Kf1 {[%emt 0:00:00]} (45. Rf2 $142 Rd4 46. Nb1) 45... Rb2 {[%emt 0:08:44]} 46. Nd1 {[%emt 0:00:00]} Rb1 {[%emt 0:01:00]} 47. Ke2 {[%emt 0:00:00]} Nf5 {[%emt 0:00:18] [#] ...Nd4+ would now be deadly.} 48. Kd2 {[%emt 0:00:00]} Nd4 {[%emt 0:00:57][%csl LRb3,LRf3]} 49. Rd3 {[%emt 0:00:00]} Rxb3 {[%emt 0:01:17]} 50. Nc3 {[%emt 0:00:00]} Rb2+ {[%emt 0:00:52]} 51. Kc1 {[%emt 0:00:00]} Rg2 {[%emt 0:01:45]} 52. Nb5 {[%emt 0:00:00]} Nxb5 {[%emt 0:04:18]} 53. axb5 {[%emt 0:00:00] KR-KR} Ra2 {[%emt 0:02:41] Strongly threatening ...f5.} 54. Kb1 {[%emt 0:00:00]} Ra4 {[%emt 0:00:15] aiming for ...e4.} 55. Kc2 {[%emt 0:00:00]} Rc4+ {[%emt 0:00:38]} 56. Kb3 {[%emt 0:00:00]} Rd4 {[%emt 0:01:25]} 57. Rc3 {[%emt 0:00:00]} e4 {[%emt 0:01:09]} 58. Rc8 {[%emt 0:00:00]} Rd3+ {[%emt 0:00:33]} 59. Kc4 {[%emt 0:00:00]} Rxg3 {[%emt 0:00:52] Black mates.} 60. Kd4 {[%emt 0:00:00]} Kf5 {[%emt 0:00:17]} 61. Rh8 {[%emt 0:00:00]} Rd3+ {[%emt 0:00:19]} 62. Kc4 {[%emt 0:00:00]} Rd7 {[%emt 0:00:20]} 63. Rh4 {[%emt 0:00:00]} Ke5 {[%emt 0:00:27]} 64. Rh8 {[%emt 0:00:00]} Rc7+ {[%emt 0:00:10] Weighted Error Value: White=0.51/Black=0.14 (very precise) .  Mistake:       	White=9     	Black=3      Inaccurate:     	White=2     	Black=3      OK:         	White=9     	Black=22     Best:        	White=3     	Black=2      Strong:       	---       	Black=1} 0-1

[Event "4NCL 2023-2024"]
[Site "Daventry"]
[Date "2024.05.05"]
[Round "10.46"]
[White "Manley, Jon P"]
[Black "McKay, Roderick M"]
[Result "1-0"]
[ECO "C00"]
[WhiteElo "2165"]
[BlackElo "2181"]
[Annotator "RC"]
[PlyCount "61"]
[EventDate "2023.11.11"]
[EventType "team-tourn"]
[EventCountry "ENG"]
[SourceTitle "playchess.com"]
[Source "ChessBase"]
[SourceQuality "1"]
[TimeControl "40/6000+30:3000+30"]

1. e4 {[%emt 0:00:30]} c5 {[%emt 0:01:22]} 2. Nf3 {[%emt 0:02:02]} e6 {[%emt 0:00:15]} 3. d3 {[%emt 0:00:15]} d5 {[%emt 0:00:45]} 4. Qe2 {[%emt 0:00:11]} Ne7 {[%emt 0:01:17]} 5. g3 {[%emt 0:01:03]} g6 {[%emt 0:01:48]} 6. Bg2 {[%emt 0:00:55]} Bg7 {[%emt 0:00:07]} 7. O-O {[%emt 0:01:39]} Nbc6 {[%emt 0:00:23]} 8. Re1 {[%emt 0:13:44]} h6 {[%emt 0:02:33]} 9. h4 {[%emt 0:03:33]} a6 {[%emt 0:05:40]} 10. e5 {[%emt 0:05:35]} b6 {[%emt 0:03:56]} 11. c3 {[%emt 0:03:20]} Bb7 {[%emt 0:03:59]} 12. Na3 {[%emt 0:01:01]} Qc7 {[%emt 0:00:40]} 13. Nc2 {[%emt 0:02:32]} O-O-O {[%emt 0:06:01]} 14. Rb1 {[%emt 0:12:07]} b5 {[%emt 0:12:42]} 15. b3 {[%emt 0:10:03]} Nb8 {[%emt 0:03:14]} 16. a4 {[%emt 0:13:52]} Nd7 {[%emt 0:06:11]} 17. axb5 {[%emt 0:03:14]} axb5 {[%emt 0:00:09]} 18. Bf4 {[%emt 0:01:57]} Bc6 {[%emt 0:02:47]} 19. c4 {[%emt 0:04:14]} Nb6 {[%emt 0:05:44]} 20. cxb5 {[%emt 0:03:25]} Bxb5 {[%emt 0:00:11]} 21. Rec1 {[%emt 0:04:34]} Ba6 {[%emt 0:07:25]} 22. Na3 {[%emt 0:01:23]} Kb8 {[%emt 0:01:56]} 23. b4 {[%emt 0:00:41]} c4 {[%emt 0:00:25]} 24. b5 {[%emt 0:00:40]} Bb7 {[%emt 0:00:09]} 25. dxc4 {[%emt 0:00:47]} dxc4 {[%emt 0:00:29]} 26. Nxc4 {[%emt 0:00:56]} Nxc4 {[%emt 0:00:17]} 27. Rxc4 {[%emt 0:00:20]} Qd7 {[%emt 0:03:40]} 28. Nd4 {[%emt 0:02:43]} Qxd4 {[%emt 0:04:26]} 29. Rxd4 {[%emt 0:00:08]} Rxd4 {[%emt 0:00:08]} 30. Bxb7 {[%emt 0:01:30]} Kxb7 {[%emt 0:00:01]} 31. Qf3+ {[%emt 0:01:26]} 1-0

[Event "4NCL 2023-2024"]
[Site "Daventry"]
[Date "2024.05.05"]
[Round "10.47"]
[White "Vijayakumar, Rishi"]
[Black "Pozimski, Szymon"]
[Result "1-0"]
[ECO "D45"]
[WhiteElo "2197"]
[BlackElo "2018"]
[Annotator "RC"]
[PlyCount "53"]
[EventDate "2023.11.11"]
[EventType "team-tourn"]
[EventCountry "ENG"]
[SourceTitle "playchess.com"]
[Source "ChessBase"]
[SourceQuality "1"]
[TimeControl "40/6000+30:3000+30"]

1. d4 {[%emt 0:00:31]} d5 {[%emt 0:00:01]} 2. c4 {[%emt 0:00:21]} e6 {[%emt 0:00:06]} 3. Nc3 {[%emt 0:00:09]} c6 {[%emt 0:00:05]} 4. e3 {[%emt 0:00:54]} Nf6 {[%emt 0:00:05]} 5. Nf3 {[%emt 0:00:05]} Nbd7 {[%emt 0:00:08]} 6. Qc2 {[%emt 0:00:16]} Bd6 {[%emt 0:00:10]} 7. g4 {[%emt 0:04:32]} Qe7 {[%emt 0:10:49]} 8. g5 {[%emt 0:08:41]} Nh5 {[%emt 0:00:52]} 9. Be2 {[%emt 0:01:00]} g6 {[%emt 0:10:05]} 10. e4 {[%emt 0:10:43]} dxe4 {[%emt 0:15:02]} 11. Nxe4 {[%emt 0:06:48]} Bb4+ {[%emt 0:31:07]} 12. Bd2 {[%emt 0:05:56]} f5 {[%emt 0:08:09]} 13. gxf6 {[%emt 0:06:08]} Nhxf6 {[%emt 0:10:24]} 14. Neg5 {[%emt 0:28:43]} e5 {[%emt 0:06:39]} 15. O-O-O {[%emt 0:01:44]} Bxd2+ {[%emt 0:02:14]} 16. Nxd2 {[%emt 0:02:43]} exd4 {[%emt 0:05:49]} 17. Rde1 {[%emt 0:02:07]} O-O {[%emt 0:00:16]} 18. Bg4 {[%emt 0:12:45]} Qd6 {[%emt 0:01:38]} 19. Be6+ {[%emt 0:00:24]} Kg7 {[%emt 0:00:43]} 20. Rhg1 {[%emt 0:03:13]} Ne5 {[%emt 0:03:03]} 21. f4 {[%emt 0:03:12]} Nf7 {[%emt 0:01:16]} 22. c5 {[%emt 0:00:40]} Qxf4 {[%emt 0:01:42]} 23. Nxh7 {[%emt 0:02:57]} d3 {[%emt 0:01:00]} 24. Qxd3 {[%emt 0:00:12]} Ne5 {[%emt 0:00:01]} 25. Rxe5 {[%emt 0:00:16]} Qxe5 {[%emt 0:00:03]} 26. Qxg6+ {[%emt 0:00:12]} Kh8 {[%emt 0:00:04]} 27. Qg7# {[%emt 0:00:06]} 1-0

[Event "4NCL 2023-2024"]
[Site "Daventry"]
[Date "2024.05.05"]
[Round "10.48"]
[White "Hariharan, Shambavi"]
[Black "Cooke, Suzie G."]
[Result "1/2-1/2"]
[ECO "D34"]
[WhiteElo "1887"]
[BlackElo "1955"]
[Annotator "NA RC"]
[PlyCount "97"]
[EventDate "2023.11.11"]
[EventType "team-tourn"]
[EventCountry "ENG"]
[SourceTitle "playchess.com"]
[Source "ChessBase"]
[SourceQuality "1"]
[TimeControl "40/6000+30:3000+30"]

1. d4 {[%emt 0:00:06]} d5 {[%emt 0:00:10]} 2. Nf3 {[%emt 0:00:21]} e6 {[%emt 0:00:07]} 3. c4 {[%emt 0:00:05]} c5 {[%emt 0:00:12]} 4. cxd5 {[%emt 0:00:05]} exd5 {[%emt 0:00:15]} 5. Nc3 {[%emt 0:00:11]} Nf6 {[%emt 0:00:15]} 6. g3 {[%emt 0:00:03]} Nc6 {[%emt 0:00:19]} 7. Bg2 {[%emt 0:01:43]} Be7 {[%emt 0:00:35]} 8. O-O {[%emt 0:00:19]} O-O {[%emt 0:00:12]} 9. dxc5 {[%emt 0:00:42]} Bxc5 {[%emt 0:00:14]} 10. Bg5 {[%emt 0:01:11]} d4 {[%emt 0:00:57]} 11. Bxf6 {[%emt 0:02:21]} Qxf6 {[%emt 0:00:06]} 12. Ne4 {[%emt 0:00:12]} Qe7 {[%emt 0:00:26]} 13. Nxc5 {[%emt 0:01:23]} Qxc5 {[%emt 0:00:10]} 14. Qd2 {[%emt 0:01:27]} Bg4 {[%emt 0:10:04]} 15. Rac1 {[%emt 0:02:34]} Qb6 {[%emt 0:04:47]} 16. b3 {[%emt 0:03:32]} Rad8 {[%emt 0:08:23]} 17. Qf4 {[%emt 0:08:36]} Bxf3 {[%emt 0:02:30]} 18. Bxf3 {[%emt 0:00:07]} Rfe8 {[%emt 0:14:51]} 19. Rfd1 {[%emt 0:18:50]} Re6 {[%emt 0:12:45]} 20. Bxc6 {[%emt 0:10:44]} bxc6 {[%emt 0:03:30]} 21. Qf3 {[%emt 0:05:02]} h6 {[%emt 0:03:39]} 22. Qd3 {[%emt 0:03:28]} Rde8 {[%emt 0:08:35]} 23. Qxd4 {[%emt 0:02:58]} Rxe2 {[%emt 0:02:29]} 24. Qxb6 {[%emt 0:01:45]} axb6 {[%emt 0:00:16]} 25. Rxc6 {[%emt 0:00:14]} Rxa2 {[%emt 0:00:21]} 26. Rxb6 {[%emt 0:00:34]} Ree2 {[%emt 0:00:35]} 27. Rf1 {[%emt 0:00:12]} Reb2 {[%emt 0:01:13]} 28. b4 {[%emt 0:00:19]} Ra4 {[%emt 0:00:26]} 29. Rb8+ {[%emt 0:01:06]} Kh7 {[%emt 0:00:04]} 30. Rb7 {[%emt 0:00:19]} Kg6 {[%emt 0:00:42]} 31. Rc1 {[%emt 0:00:55]} Raxb4 {[%emt 0:01:28]} 32. Rc6+ {[%emt 0:00:12]} f6 {[%emt 0:00:11]} 33. Rd7 {[%emt 0:00:13]} Rb7 {[%emt 0:00:18]} 34. Rxb7 {[%emt 0:01:36]} Rxb7 {[%emt 0:00:06]} 35. Kg2 {[%emt 0:00:04]} Rb2 {[%emt 0:11:57]} 36. h3 {[%emt 0:00:25]} h5 {[%emt 0:00:34]} 37. g4 {[%emt 0:00:20]} hxg4 {[%emt 0:03:43]} 38. hxg4 {[%emt 0:00:05]} Kg5 {[%emt 0:04:47]} 39. Kg3 {[%emt 0:00:31]} Rb3+ {[%emt 0:00:07]} 40. f3 {[%emt 0:00:13]} f5 {[%emt 0:03:02]} 41. Rc5 {[%emt 0:50:12]} g6 {[%emt 0:50:11]} 42. Ra5 {[%emt 0:00:15]} Rc3 {[%emt 0:01:07]} 43. gxf5 {[%emt 0:01:26]} gxf5 {[%emt 0:00:06]} 44. Rb5 {[%emt 0:00:04]} Ra3 {[%emt 0:00:28]} 45. Rc5 {[%emt 0:00:15]} Rb3 {[%emt 0:00:13]} 46. Ra5 {[%emt 0:00:25]} Rc3 {[%emt 0:00:05]} 47. Rb5 {[%emt 0:00:10]} Ra3 {[%emt 0:00:13]} 48. Rc5 {[%emt 0:00:04]} Rb3 {[%emt 0:00:09]} 49. Ra5 {[%emt 0:00:34]} 1/2-1/2

[Event "4NCL 2023-2024"]
[Site "Daventry"]
[Date "2024.05.06"]
[Round "11.1"]
[White "Shirov, Alexei"]
[Black "Jones, Gawain C B"]
[Result "0-1"]
[ECO "C79"]
[WhiteElo "2668"]
[BlackElo "2620"]
[Annotator "TA"]
[PlyCount "74"]
[EventDate "2023.11.11"]
[EventType "team-tourn"]
[EventCountry "ENG"]
[SourceTitle "playchess.com"]
[Source "ChessBase"]
[SourceQuality "1"]
[TimeControl "40/6000+30:3000+30"]

{[%evp 15,74,30,33,31,32,33,47,34,36,33,39,25,35,0,0,0,22,0,0,0,0,-17,0,0,0,-13,-20,-17,0,-11,0,0,0,0,0,0,0,0,0,0,0,0,0,-8,-7,-14,-8,-6,0,-402,-388,-408,-378,-387,-407,-408,-399,-548,-557,-547,-525]} 1. e4 {[%emt 0:00:03]} e5 {[%emt 0:02:01]} 2. Nf3 {[%emt 0:00:06]} Nc6 {[%emt 0:00:04]} 3. Bb5 {[%emt 0:00:06]} a6 {[%emt 0:00:15]} 4. Ba4 {[%emt 0:00:05]} Nf6 {[%emt 0:00:05]} 5. O-O {[%emt 0:00:05]} d6 {[%emt 0:00:09]} 6. Bxc6+ {[%emt 0:14:52]} bxc6 {[%emt 0:00:06]} 7. d4 {[%emt 0:00:03]} exd4 {[%emt 0:00:08]} 8. Nxd4 {[%emt 0:00:04]} c5 {[%emt 0:00:07]} 9. Nc6 {[%emt 0:00:26]} Qd7 {[%emt 0:00:05]} 10. Na5 {[%emt 0:00:04]} Qa4 {[%emt 0:00:10]} 11. Bd2 {[%emt 0:03:06] White is slightly better.} Be7 {[%emt 0:00:06]} 12. Re1 {[%emt 0:06:27]} Bg4 {[%emt 0:00:14]} 13. f3 {[%emt 0:06:20]} Be6 {[%emt 0:00:04][%cal Oe8g8]} 14. c4 {[%emt 0:02:31]} Qxd1 {[%emt 0:09:22]} 15. Rxd1 {[%emt 0:00:47]} Nd7 {[%emt 0:00:11]} 16. Bc3 {[%emt 0:18:45]} O-O {[%emt 0:00:29]} 17. Nd2 {[%emt 0:00:04][%cal Bb1d2,Bd2f1,Bf1g3,Bg3e4][%mdl 32]} Bg5 {[%emt 0:01:48]} 18. Nf1 {[%emt 0:06:47]} Rae8 {[%emt 0:08:12]} 19. Re1 {[%emt 0:12:50]} f5 {[%emt 0:01:04]} 20. Ng3 {[%emt 0:00:39]} fxe4 {[%emt 0:04:59]} 21. Nxe4 {[%emt 0:03:02]} Bf4 {[%emt 0:09:30]} 22. g3 {[%emt 0:06:58] [#]} Ne5 $1 {[%emt 0:03:51]} 23. Kg2 {[%emt 0:14:14]} (23. gxf4 Nxf3+ (23... Nxc4 $2 {loses.} 24. Nxc4 Bxc4 25. Kf2 $18) 24. Kg2 Nxe1+ 25. Rxe1 Rxf4 $17) 23... Nxf3 $1 {[%emt 0:00:27]} 24. Kxf3 {[%emt 0:00:05]} Bd2+ {[%emt 0:00:08] This pair of bishops is nice.} 25. Kg2 {[%emt 0:00:04]} Bxe1 {[%emt 0:00:08]} 26. Rxe1 {[%emt 0:00:03]} Bg4 $36 {[%emt 0:02:15][%mdl 2048] ...Bf3+ would now be deadly. Black is more active.} 27. Nf2 {[%emt 0:02:02]} Bf3+ {[%emt 0:03:16]} 28. Kf1 {[%emt 0:00:12]} Rxe1+ {[%emt 0:02:17]} 29. Bxe1 {[%emt 0:00:06]} Re8 {[%emt 0:02:34]} 30. Bd2 {[%emt 0:04:42]} h6 {[%emt 0:08:59]} 31. h4 {[%emt 0:00:22]} Kf7 {[%emt 0:00:25]} 32. Nh3 $2 {[%emt 0:01:29][%mdl 8192] [#]} (32. Bc3 $11 {and White has nothing to worry.}) 32... Bg2+ $1 $19 {[%emt 0:01:09][%mdl 512]} 33. Kxg2 {[%emt 0:04:26]} (33. Kf2 Bxh3) 33... Re2+ {[%emt 0:00:06]} 34. Kf3 {[%emt 0:00:07]} Rxd2 {[%emt 0:00:03]} 35. Nf4 {[%emt 0:03:13]} Rxb2 {[%emt 0:00:16]} 36. Nc6 {[%emt 0:00:52]} Ke8 {[%emt 0:03:41] Prevents Nd8} 37. Ng6 {[%emt 0:01:20]} Rxa2 {[%emt 0:01:15] Weighted Error Value: White=0.35/Black=0.01 (flawless) .  Loses game:     	White=1     	---        Inaccurate:     	White=1     	---        OK:         	White=11    	Black=20     Best:        	White=1     	Black=1      Strong:       	---       	Black=1      Brilliant:      	---       	Black=1} 0-1

[Event "4NCL 2023-2024"]
[Site "Daventry"]
[Date "2024.05.06"]
[Round "11.2"]
[White "Alsina Leal, Daniel"]
[Black "Svane, Frederik"]
[Result "1/2-1/2"]
[ECO "D02"]
[WhiteElo "2510"]
[BlackElo "2637"]
[Annotator "TA"]
[PlyCount "48"]
[EventDate "2023.11.11"]
[EventType "team-tourn"]
[EventCountry "ENG"]
[SourceTitle "playchess.com"]
[Source "ChessBase"]
[SourceQuality "1"]
[TimeControl "40/6000+30:3000+30"]

{[%evp 10,48,21,25,33,0,0,0,0,0,0,0,0,0,3,-14,0,0,0,-47,-37,-37,-45,-45,-38,-23,0,0,0,0,0,0,0,0,0,0,4,0,0,0,0]} 1. Nf3 {[%emt 0:04:48]} Nf6 {[%emt 0:01:49]} 2. c4 {[%emt 0:01:52][%cal Bc2c4,Bc4c5][%mdl 32]} e6 {[%emt 0:01:27]} 3. g3 {[%emt 0:01:20]} d5 {[%emt 0:02:08]} 4. Bg2 {[%emt 0:00:25]} Bd6 {[%emt 0:07:12]} 5. d4 {[%emt 0:04:34]} O-O {[%emt 0:00:17]} 6. O-O {[%emt 0:08:28]} h6 {[%emt 0:00:58]} 7. c5 {[%emt 0:04:31]} Be7 {[%emt 0:00:18]} 8. b4 {[%emt 0:00:31]} b6 {[%emt 0:09:08]} 9. Bb2 {[%emt 0:01:39]} a5 {[%emt 0:07:07]} 10. a3 {[%emt 0:00:15]} bxc5 {[%emt 0:06:41]} 11. bxc5 {[%emt 0:05:35]} Nc6 {[%emt 0:03:01]} 12. Nbd2 {[%emt 0:03:13]} Ne4 {[%emt 0:03:56]} 13. Nxe4 {[%emt 0:11:57]} dxe4 {[%emt 0:00:27]} 14. Ne1 {[%emt 0:04:14]} (14. Ne5 $11 Nxe5 15. dxe5) 14... f5 $15 {[%emt 0:02:24]} 15. f3 {[%emt 0:11:44]} Rb8 {[%emt 0:05:45]} 16. Bc3 {[%emt 0:01:55] [#]} e5 $1 {[%emt 0:03:48][%cal Re5d4]} 17. fxe4 {[%emt 0:01:34]} exd4 {[%emt 0:12:45]} (17... Nxd4 {simplifies} 18. Bxd4 Qxd4+ 19. Qxd4 exd4 20. Nd3 fxe4 21. Bxe4 Be6) 18. Bd2 {[%emt 0:01:08] The position is equal.} fxe4 {[%emt 0:16:23] Threatens to win with ...Rxf1+.} (18... Bxc5 $6 19. Qc2 Qd6 20. Rc1 (20. exf5 $2 d3+ $19) (20. Nd3 Bb6 $16) 20... Bxa3 21. Qxc6 Bxc1 22. Qxc1 $16) 19. Rxf8+ {[%emt 0:03:13]} Qxf8 {[%emt 0:00:19]} 20. Bxe4 {[%emt 0:00:45]} Ne5 {[%emt 0:05:06]} 21. Nd3 {[%emt 0:02:05]} (21. Bxa5 Bxc5 22. Nd3 Qe7 $15) 21... Nxd3 {[%emt 0:01:24]} 22. exd3 {[%emt 0:00:16] [#] Strongly threatening Qh5.} Bf5 $1 {[%emt 0:04:03] ...Bxe4 is the strong threat.} 23. Qf3 {[%emt 0:05:05]} (23. Bxa5 $2 {too greedy.} Bxe4 (23... Bxc5 24. Bxc7 Re8 25. Bg2 $14) 24. dxe4 Rb2 $19 (24... Bxc5 25. Qd3 $17)) 23... Bxe4 {[%emt 0:00:13]} 24. Qxe4 {[%emt 0:00:25]} Bxc5 {[%emt 0:00:16] Weighted Error Value: White=0.07 (flawless) /Black=0.03 (flawless) .  Mistake:       	White=1     	---        Inaccurate:     	White=1     	---        OK:         	White=10    	Black=11     Best:        	White=1     	Black=1      Strong:       	---       	Black=1} 1/2-1/2